bitfinex/quotes_BTCUSD_20240929
["timestamp","ask_amount","ask_price","bid_price","bid_amount"]
[1727625478364,1.21069499,65912.0,65911.0,5.002]
[1727625479606,1.17987295,65912.0,65911.0,5.002]
[1727625480454,1.15187295,65912.0,65911.0,5.0]
[1727625480886,1.17987295,65912.0,65911.0,5.0]
[1727625481337,1.0042962,65912.0,65911.0,5.0]
[1727625481567,1.09025019,65912.0,65911.0,5.0]
[1727625481792,0.8365518,65912.0,65911.0,5.0]
[1727625482475,0.8505518,65912.0,65911.0,5.0]
[1727625482700,1.10659174,65912.0,65911.0,5.0]
[1727625483433,0.85042592,65912.0,65911.0,5.0]
[1727625483674,0.83642592,65912.0,65911.0,5.0]
[1727625484156,0.85042592,65912.0,65911.0,5.0]
[1727625484387,0.84778226,65912.0,65911.0,5.0]
[1727625484889,0.76701696,65912.0,65911.0,5.0]
[1727625485143,0.89712016,65912.0,65911.0,5.0]
[1727625485380,0.64561696,65912.0,65911.0,5.0]
[1727625485632,0.56561696,65912.0,65911.0,5.0]
[1727625485864,0.51847264,65912.0,65911.0,5.0]
[1727625486132,0.52047264,65912.0,65911.0,5.0]
[1727625486356,0.51847264,65912.0,65911.0,5.0]
[1727625487285,0.38248215,65912.0,65911.0,5.0]
[1727625487524,0.56648618,65912.0,65911.0,5.0]
[1727625487760,0.56848618,65912.0,65911.0,5.0]
[1727625488691,0.56648618,65912.0,65911.0,5.0]
[1727625488917,0.56848618,65912.0,65911.0,5.0]
[1727625491940,0.59227355,65912.0,65911.0,5.0]
[1727625492204,0.74873749,65912.0,65911.0,5.0]
[1727625494253,0.72495012,65912.0,65911.0,5.0]
[1727625495461,0.98266199,65912.0,65911.0,5.0]
[1727625495869,0.72495012,65912.0,65911.0,5.0]
[1727625497678,0.56856206,65912.0,65911.0,5.0]
[1727625501344,0.57534932,65912.0,65911.0,5.0]
[1727625502970,0.55656206,65912.0,65911.0,5.0]
[1727625503670,0.55856206,65912.0,65911.0,5.0]
[1727625504376,0.71168772,65912.0,65911.0,5.0]
[1727625505331,0.55856206,65912.0,65911.0,5.0]
[1727625506971,0.71155504,65912.0,65911.0,5.0]
[1727625507393,0.73534204,65912.0,65911.0,5.0]
[1727625507609,0.58234906,65912.0,65911.0,5.0]
[1727625511863,0.58034906,65912.0,65911.0,5.0]
[1727625512328,0.55656206,65912.0,65911.0,5.0]
[1727625512560,0.55156206,65912.0,65911.0,5.0]
[1727625513218,0.53756206,65912.0,65911.0,5.0]
[1727625514101,0.55156206,65912.0,65911.0,5.0]
[1727625515467,0.57534874,65912.0,65911.0,5.0]
[1727625516107,0.58034874,65912.0,65911.0,5.0]
[1727625516745,0.57534874,65912.0,65911.0,5.0]
[1727625516962,0.58034874,65912.0,65911.0,5.0]
[1727625517192,0.57534874,65912.0,65911.0,5.0]
[1727625517922,0.55156206,65912.0,65911.0,5.0]
[1727625518341,0.55656206,65912.0,65911.0,5.0]
[1727625518558,0.55156206,65912.0,65911.0,5.0]
[1727625519046,0.55656206,65912.0,65911.0,5.0]
[1727625519496,0.55156206,65912.0,65911.0,5.0]
[1727625519723,0.55856206,65912.0,65911.0,5.0]
[1727625520198,0.55656206,65912.0,65911.0,5.0]
[1727625520430,0.55856206,65912.0,65911.0,5.0]
[1727625520656,0.55656206,65912.0,65911.0,5.0]
[1727625521114,0.58034869,65912.0,65911.0,5.0]
[1727625522993,0.55656206,65912.0,65911.0,5.0]
[1727625525578,0.55156206,65912.0,65911.0,5.0]
[1727625525813,0.5580807,65912.0,65911.0,5.0]
[1727625526034,0.58186752,65912.0,65911.0,5.0]
[1727625526495,0.58386752,65912.0,65911.0,5.0]
[1727625527890,0.5600807,65912.0,65911.0,5.0]
[1727625529468,0.5580807,65912.0,65911.0,5.0]
[1727625529917,0.5600807,65912.0,65911.0,5.0]
[1727625531069,0.58386783,65912.0,65911.0,5.0]
[1727625532218,0.5600807,65912.0,65911.0,5.0]
[1727625534552,0.81991867,65912.0,65911.0,5.0]
[1727625534777,0.5600807,65912.0,65911.0,5.0]
[1727625534989,0.81991867,65912.0,65911.0,5.0]
[1727625535238,0.5600807,65912.0,65911.0,5.0]
[1727625535468,0.81932662,65912.0,65911.0,5.0]
[1727625535724,0.55983401,65912.0,65911.0,5.0]
[1727625535942,0.81932662,65912.0,65911.0,5.0]
[1727625536165,0.55983401,65912.0,65911.0,5.0]
[1727625536481,0.81932662,65912.0,65911.0,5.0]
[1727625536710,0.55983401,65912.0,65911.0,5.0]
[1727625536945,0.81932662,65912.0,65911.0,5.0]
[1727625538302,0.97571468,65912.0,65911.0,5.0]
[1727625538522,1.20001737,65912.0,65911.0,5.0]
[1727625539646,1.2238056,65912.0,65911.0,5.0]
[1727625540086,0.97571468,65912.0,65911.0,5.0]
[1727625543268,0.98623585,65912.0,65911.0,5.0]
[1727625547548,1.01002444,65912.0,65911.0,5.0]
[1727625548676,0.98623585,65912.0,65911.0,5.0]
[1727625549317,1.09233585,65912.0,65911.0,5.0]
[1727625550009,1.17113585,65912.0,65911.0,5.0]
[1727625550484,1.15713585,65912.0,65911.0,5.0]
[1727625551176,1.17113585,65912.0,65911.0,5.0]
[1727625551844,1.19413585,65912.0,65911.0,5.0]
[1727625552744,1.18013585,65912.0,65911.0,5.0]
[1727625553637,1.16613585,65912.0,65911.0,5.0]
[1727625554091,1.19413585,65912.0,65911.0,5.0]
[1727625554311,1.18013585,65912.0,65911.0,5.0]
[1727625555441,1.16613585,65912.0,65911.0,5.0]
[1727625555676,1.16613585,65912.0,65911.0,4.878624]
[1727625555677,1.19413585,65912.0,65911.0,4.878624]
[1727625555901,1.19413585,65912.0,65911.0,4.69656]
[1727625556128,1.21792585,65912.0,65911.0,4.69656]
[1727625556579,1.19413585,65912.0,65911.0,4.69656]
[1727625556773,1.19413585,65912.0,65911.0,4.666216]
[1727625557010,1.18013585,65912.0,65911.0,4.54484]
[1727625557232,0.92064324,65912.0,65911.0,4.54484]
[1727625557459,0.93464324,65912.0,65911.0,4.54484]
[1727625557683,0.90664324,65912.0,65911.0,4.54484]
[1727625557908,0.93464324,65912.0,65911.0,4.39312]
[1727625558126,0.91818264,65912.0,65911.0,4.39312]
[1727625558362,0.90418264,65912.0,65911.0,4.39312]
[1727625558608,0.91818264,65912.0,65911.0,4.39312]
[1727625558873,0.93218264,65912.0,65911.0,4.362776]
[1727625559345,0.95597387,65912.0,65911.0,4.362776]
[1727625559564,0.95597387,65912.0,65911.0,4.302088]
[1727625560493,0.94197387,65912.0,65911.0,4.302088]
[1727625560737,0.94197387,65912.0,65911.0,4.211056]
[1727625560961,0.95597387,65912.0,65911.0,4.150368]
[1727625561196,0.94197387,65912.0,65911.0,4.150368]
[1727625561432,0.95597387,65912.0,65911.0,4.150368]
[1727625562558,0.93218264,65912.0,65911.0,4.08968]
[1727625562803,0.91818264,65912.0,65911.0,4.028992]
[1727625563268,0.90418264,65912.0,65911.0,3.90927]
[1727625563491,0.90418264,65912.0,65911.0,3.878926]
[1727625563612,0.91818264,65912.0,65911.0,3.878926]
[1727625564009,0.93218264,65912.0,65911.0,3.848582]
[1727625564447,0.90418264,65912.0,65911.0,3.727206]
[1727625564659,0.91818264,65912.0,65911.0,3.727206]
[1727625564876,0.93218264,65912.0,65911.0,3.696862]
[1727625565325,0.93218264,65912.0,65911.0,3.596862]
[1727625565540,0.95597426,65912.0,65911.0,3.596862]
[1727625566068,0.91818264,65912.0,65911.0,3.596862]
[1727625566309,0.90418264,65912.0,65911.0,3.566518]
[1727625566715,0.91818264,65912.0,65911.0,3.566518]
[1727625566927,0.90418264,65912.0,65911.0,3.566518]
[1727625567168,0.91818264,65912.0,65911.0,3.536174]
[1727625567410,0.93218264,65912.0,65911.0,3.50583]
[1727625567646,0.93199083,65912.0,65911.0,3.414798]
[1727625568125,0.91799083,65912.0,65911.0,3.414798]
[1727625568364,0.93199083,65912.0,65911.0,3.414798]
[1727625568814,0.95578246,65912.0,65911.0,3.414798]
[1727625569230,0.95577717,65912.0,65911.0,3.414798]
[1727625569869,0.95577717,65912.0,65911.0,3.2290305]
[1727625570135,0.94177717,65912.0,65911.0,3.1683425]
[1727625570348,0.95577717,65912.0,65911.0,3.1379985]
[1727625570566,0.95577717,65912.0,65911.0,3.0773105]
[1727625570794,0.92777717,65912.0,65911.0,3.0469665]
[1727625571045,0.94177717,65912.0,65911.0,2.9255905]
[1727625571264,0.95577717,65912.0,65911.0,2.9255905]
[1727625571716,0.92777717,65912.0,65911.0,2.9255905]
[1727625571930,0.94177717,65912.0,65911.0,2.8952465]
[1727625572391,0.92777717,65912.0,65911.0,2.8042145]
[1727625572611,0.92777717,65912.0,65911.0,2.7738705]
[1727625572829,0.91798554,65912.0,65911.0,2.7738705]
[1727625573228,0.93198554,65912.0,65911.0,2.7738705]
[1727625574094,0.90398554,65912.0,65911.0,2.7738705]
[1727625574348,0.91798554,65912.0,65911.0,2.7738705]
[1727625574562,0.93198554,65912.0,65911.0,2.7738705]
[1727625574812,0.91798554,65912.0,65911.0,2.7738705]
[1727625575679,0.90398554,65912.0,65911.0,2.7738705]
[1727625576134,0.92777835,65912.0,65911.0,2.7738705]
[1727625576360,0.91798554,65912.0,65911.0,2.7738705]
[1727625576816,0.93198554,65912.0,65911.0,2.7738705]
[1727625579147,0.95577828,65912.0,65911.0,2.7738705]
[1727625580945,1.2115501,65912.0,65911.0,2.7738705]
[1727625581159,0.85967828,65912.0,65911.0,2.7738705]
[1727625582226,1.1154501,65912.0,65911.0,2.7738705]
[1727625582687,1.1154501,65912.0,65911.0,2.488688]
[1727625582688,1.0346501,65912.0,65911.0,2.488688]
[1727625582899,0.8564693,65912.0,65911.0,2.588288]
[1727625583120,0.68146278,65912.0,65911.0,2.588288]
[1727625583568,0.65708554,65912.0,65911.0,2.588288]
[1727625583792,0.73785084,65912.0,65911.0,2.588288]
[1727625584919,0.83785084,65912.0,65911.0,2.588288]
[1727625585616,0.57769748,65912.0,65911.0,2.588288]
[1727625585830,0.65846278,65912.0,65911.0,2.588288]
[1727625586269,0.68225356,65912.0,65911.0,2.588288]
[1727625586535,0.68351741,65912.0,65911.0,2.588288]
[1727625586979,0.65972663,65912.0,65911.0,2.588288]
[1727625588355,0.81611469,65912.0,65911.0,2.588288]
[1727625590115,0.83990536,65912.0,65911.0,2.588288]
[1727625591196,0.59223083,65912.0,65911.0,2.663688]
[1727625591673,0.74584669,65912.0,65911.0,2.663688]
[1727625592113,0.73184669,65912.0,65911.0,2.663688]
[1727625592563,0.59223083,65912.0,65911.0,2.663688]
[1727625592780,0.56423083,65912.0,65911.0,2.663688]
[1727625593188,0.73461889,65912.0,65911.0,2.663688]
[1727625593399,0.71082822,65912.0,65911.0,2.663688]
[1727625593626,0.69682822,65912.0,65911.0,2.663688]
[1727625593830,0.71082822,65912.0,65911.0,2.663688]
[1727625594035,0.72482822,65912.0,65911.0,2.663688]
[1727625596635,0.74861694,65912.0,65911.0,2.663688]
[1727625597748,0.72482822,65912.0,65911.0,2.663688]
[1727625599930,0.74861684,65912.0,65911.0,2.663688]
[1727625601058,0.82061217,65912.0,65911.0,2.663688]
[1727625601261,1.4477035,65912.0,65911.0,2.663688]
[1727625602262,1.42391488,65912.0,65911.0,2.663688]
[1727625602905,0.98126363,65912.0,65911.0,2.663688]
[1727625603393,0.97626363,65912.0,65911.0,2.663688]
[1727625603823,0.98126363,65912.0,65911.0,2.663688]
[1727625605435,0.81287557,65912.0,65911.0,2.663688]
[1727625606311,1.12231753,65912.0,65911.0,2.488688]
[1727625606535,0.98429383,65912.0,65911.0,2.488688]
[1727625606769,0.93624392,65912.0,65911.0,2.488688]
[1727625606977,0.95130784,65912.0,65911.0,2.488688]
[1727625607116,1.0936959,65912.0,65911.0,2.488688]
[1727625607484,1.05702893,65912.0,65911.0,2.488688]
[1727625607691,1.07102893,65912.0,65911.0,2.488688]
[1727625608095,1.06754815,65912.0,65911.0,2.488688]
[1727625608527,1.09554815,65912.0,65911.0,2.488688]
[1727625608765,1.08154815,65912.0,65911.0,2.488688]
[1727625609006,1.06754815,65912.0,65911.0,2.488688]
[1727625609241,1.08154815,65912.0,65911.0,2.488688]
[1727625609638,1.1053392,65912.0,65911.0,2.488688]
[1727625610192,1.1193392,65912.0,65911.0,2.488688]
[1727625612915,0.60975372,65912.0,65911.0,2.46131262]
[1727625613545,0.73347072,65912.0,65911.0,2.46131262]
[1727625613753,0.76147072,65912.0,65911.0,2.46131262]
[1727625615926,0.7852618,65912.0,65911.0,2.46131262]
[1727625616176,0.7712618,65912.0,65911.0,2.46131262]
[1727625616404,0.7852618,65912.0,65911.0,2.46131262]
[1727625616632,0.7712618,65912.0,65911.0,2.46131262]
[1727625616843,0.7852618,65912.0,65911.0,2.46131262]
[1727625617340,0.81851401,65912.0,65911.0,2.46131262]
[1727625618241,0.76672293,65912.0,65911.0,2.46131262]
[1727625618472,0.78072293,65912.0,65911.0,2.46131262]
[1727625618694,0.79472293,65912.0,65911.0,2.46131262]
[1727625619363,0.81851439,65912.0,65911.0,2.46131262]
[1727625619755,0.80451439,65912.0,65911.0,2.46131262]
[1727625620010,0.81851439,65912.0,65911.0,2.46131262]
[1727625620499,0.80451439,65912.0,65911.0,2.46131262]
[1727625620733,0.81851439,65912.0,65911.0,2.46131262]
[1727625622070,0.81934139,65912.0,65911.0,2.46131262]
[1727625622866,1.05376436,65912.0,65911.0,2.46131262]
[1727625626110,1.07755585,65912.0,65911.0,2.46131262]
[1727625626301,1.05376436,65912.0,65911.0,2.46131262]
[1727625629410,1.05351137,65912.0,65911.0,2.46131262]
[1727625634165,1.29978629,65912.0,65911.0,2.46131262]
[1727625634613,1.05351137,65912.0,65911.0,2.46131262]
[1727625645329,1.05272442,65912.0,65911.0,2.46131262]
[1727625646290,1.05072442,65912.0,65911.0,2.46131262]
[1727625647007,1.05272442,65912.0,65911.0,2.46131262]
[1727625648527,1.07651695,65912.0,65911.0,2.46131262]
[1727625649780,1.05272442,65912.0,65911.0,2.46131262]
[1727625650282,1.05278151,65912.0,65911.0,2.46131262]
[1727625651532,1.07657408,65912.0,65911.0,2.46131262]
[1727625652803,1.05278151,65912.0,65911.0,2.33993662]
[1727625653115,1.05278151,65912.0,65911.0,2.21856062]
[1727625653886,1.05278151,65912.0,65911.0,2.15787262]
[1727625655045,1.05269831,65912.0,65911.0,2.06684062]
[1727625655299,1.05269831,65912.0,65911.0,2.00615262]
[1727625655300,1.27111352,65912.0,65911.0,2.00615262]
[1727625655986,1.27111352,65912.0,65911.0,1.88477662]
[1727625655987,1.2809078,65912.0,65911.0,1.88477662]
[1727625656228,1.2809078,65912.0,65911.0,1.85443262]
[1727625656508,1.27111352,65912.0,65911.0,1.85443262]
[1727625656725,1.25711352,65912.0,65911.0,1.85443262]
[1727625656907,1.24323574,65912.0,65911.0,1.82408862]
[1727625657128,1.24323574,65912.0,65911.0,1.73305662]
[1727625657363,1.25723574,65912.0,65911.0,1.70271262]
[1727625657855,1.24323574,65912.0,65911.0,1.67236862]
[1727625658085,1.25723574,65912.0,65911.0,1.64202462]
[1727625658282,1.25723574,65912.0,65911.0,1.61168062]
[1727625658536,1.27123574,65912.0,65911.0,1.55099262]
[1727625659239,1.29502998,65912.0,65911.0,1.45996062]
[1727625659480,1.29502998,65912.0,65911.0,1.39927262]
[1727625659964,1.29502998,65912.0,65911.0,1.30824062]
[1727625660139,1.29502998,65912.0,65911.0,1.24755262]
[1727625660560,1.28102998,65912.0,65911.0,1.24755262]
[1727625660780,1.28102998,65912.0,65911.0,1.21720862]
[1727625660984,1.28102998,65912.0,65911.0,1.12617662]
[1727625661208,1.29502998,65912.0,65911.0,1.09583262]
[1727625661636,1.29497529,65912.0,65911.0,1.09583262]
[1727625661851,1.29497529,65912.0,65911.0,1.06548862]
[1727625662193,1.29497529,65912.0,65911.0,1.03514462]
[1727625662407,1.29497529,65912.0,65911.0,0.94411262]
[1727625662907,1.27118105,65912.0,65911.0,0.94411262]
[1727625663152,1.32118105,65912.0,65911.0,0.82273662]
[1727625663374,1.3607127,65912.0,65911.0,0.76972811]
[1727625663595,1.58463926,65912.0,65911.0,0.3041045]
[1727625663858,0.291726,65908.0,65907.0,0.001654]
[1727625664083,0.168747,65899.0,65898.0,0.0984]
[1727625664304,0.57823219,65899.0,65898.0,0.0984]
[1727625664542,0.60123219,65899.0,65898.0,0.0984]
[1727625664989,0.60387176,65899.0,65898.0,0.0984]
[1727625665438,0.61787176,65899.0,65898.0,0.0984]
[1727625665654,0.76611419,65899.0,65898.0,0.0984]
[1727625666088,0.76611419,65899.0,65892.0,0.0776]
[1727625666089,0.168761,65893.0,65892.0,0.0776]
[1727625666362,0.57824619,65893.0,65892.0,0.0776]
[1727625666583,0.268768,65890.0,65889.0,0.32819956]
[1727625666794,0.73171299,65890.0,65889.0,0.100054]
[1727625667232,0.57825319,65890.0,65889.0,0.100054]
[1727625667439,0.60205176,65890.0,65889.0,0.100054]
[1727625667654,0.59727862,65890.0,65889.0,0.100054]
[1727625667878,0.94051125,65890.0,65889.0,0.100054]
[1727625668084,0.78710449,65890.0,65889.0,0.100054]
[1727625668293,1.05201466,65890.0,65889.0,0.100054]
[1727625668534,1.0630281,65890.0,65889.0,0.100054]
[1727625668973,1.0860281,65890.0,65889.0,0.100054]
[1727625669453,1.23937349,65890.0,65889.0,0.100054]
[1727625670361,1.0860281,65890.0,65889.0,0.100054]
[1727625670822,1.0720281,65890.0,65889.0,0.100054]
[1727625671048,1.23937349,65890.0,65889.0,0.100054]
[1727625671485,1.0860281,65890.0,65889.0,0.100054]
[1727625671923,1.23937349,65890.0,65889.0,0.100054]
[1727625672348,1.23913896,65890.0,65889.0,0.100054]
[1727625672571,1.23912196,65890.0,65889.0,0.100054]
[1727625673036,1.21532339,65890.0,65889.0,0.100054]
[1727625673261,1.06203875,65890.0,65889.0,0.100054]
[1727625673909,1.06203875,65890.0,65869.0,0.0807653]
[1727625673910,0.258788,65881.0,65869.0,0.0807653]
[1727625674136,0.43793006,65881.0,65869.0,0.0807653]
[1727625674383,0.47134718,65881.0,65869.0,0.0807653]
[1727625674600,0.51597402,65881.0,65868.0,0.22814556]
[1727625675252,0.52997402,65881.0,65868.0,0.22814556]
[1727625675472,0.58900053,65881.0,65868.0,0.22814556]
[1727625676343,0.61280054,65881.0,65868.0,0.22814556]
[1727625676553,0.5681737,65881.0,65868.0,0.22814556]
[1727625676987,0.5681737,65881.0,65880.0,0.171956]
[1727625677235,0.54437369,65881.0,65880.0,0.171956]
[1727625678463,0.58900753,65881.0,65880.0,0.171956]
[1727625680196,0.6128075,65881.0,65880.0,0.171956]
[1727625681104,0.6228075,65881.0,65880.0,0.094356]
[1727625681961,0.61914714,65881.0,65880.0,0.094356]
[1727625682384,0.59534717,65881.0,65880.0,0.094356]
[1727625683895,0.253798,65877.0,65876.0,0.0814]
[1727625684103,0.4292797,65877.0,65876.0,0.0814]
[1727625684313,0.50732836,65877.0,65876.0,0.0814]
[1727625684528,0.4606905,65877.0,65876.0,0.0814]
[1727625685179,0.50533286,65877.0,65876.0,0.0814]
[1727625685387,0.5238695,65877.0,65876.0,0.0814]
[1727625686062,0.5258695,65877.0,65876.0,0.0814]
[1727625687604,0.51250436,65877.0,65876.0,0.0814]
[1727625688537,0.51050436,65877.0,65876.0,0.0814]
[1727625689381,0.49196772,65877.0,65876.0,0.0814]
[1727625689598,0.58203013,65877.0,65876.0,0.0814]
[1727625689814,0.44589065,65877.0,65876.0,0.0814]
[1727625690272,0.29409265,65877.0,65876.0,0.2542653]
[1727625691371,0.29448768,65877.0,65876.0,0.2542653]
[1727625692449,0.29448768,65877.0,65876.0,0.2550933]
[1727625693913,0.25621807,65877.0,65876.0,0.2550933]
[1727625694130,0.29448768,65877.0,65876.0,0.2550933]
[1727625697269,0.43066009,65877.0,65876.0,0.2550933]
[1727625698928,0.43066009,65877.0,65876.0,0.4068933]
[1727625699136,0.29448768,65877.0,65876.0,0.4068933]
[1727625699351,0.25639303,65877.0,65876.0,0.4068933]
[1727625699558,0.43083505,65877.0,65876.0,0.2550933]
[1727625700226,0.29448768,65877.0,65876.0,0.2550933]
[1727625700434,0.29448768,65877.0,65876.0,0.4068933]
[1727625701048,0.29510123,65877.0,65876.0,0.4068933]
[1727625702646,0.30810123,65877.0,65876.0,0.4068933]
[1727625702911,0.20810123,65877.0,65876.0,0.63503886]
[1727625703146,0.20810123,65877.0,65876.0,0.4068933]
[1727625703646,0.12399744,65877.0,65876.0,0.4068933]
[1727625703864,0.28605301,65877.0,65876.0,0.4068933]
[1727625704133,0.20310123,65877.0,65876.0,0.4068933]
[1727625704390,0.29405396,65877.0,65876.0,0.4068933]
[1727625705090,0.29570996,65877.0,65876.0,0.4068933]
[1727625705344,0.28770996,65877.0,65876.0,0.4068933]
[1727625705572,0.19675723,65877.0,65876.0,0.4068933]
[1727625705795,0.28770996,65877.0,65876.0,0.4068933]
[1727625707505,0.19675723,65877.0,65876.0,0.4068933]
[1727625708518,0.02170166,65877.0,65876.0,0.4068933]
[1727625709465,0.08987597,65877.0,65876.0,0.4068933]
[1727625709670,0.11367266,65877.0,65876.0,0.4068933]
[1727625710618,0.11366383,65877.0,65876.0,0.4068933]
[1727625712579,0.04549835,65877.0,65876.0,0.4068933]
[1727625712822,0.02170166,65877.0,65876.0,0.4068933]
[1727625714457,0.06713032,65877.0,65876.0,0.4068933]
[1727625714886,0.02170166,65877.0,65876.0,0.4068933]
[1727625715096,0.06713032,65877.0,65876.0,0.4068933]
[1727625720129,0.06711464,65877.0,65876.0,0.4068933]
[1727625722484,0.09091132,65877.0,65876.0,0.4068933]
[1727625722685,0.04549834,65877.0,65876.0,0.4068933]
[1727625722888,0.02170166,65877.0,65876.0,0.4068933]
[1727625723698,0.02170166,65877.0,65876.0,0.63503886]
[1727625723924,0.02170166,65877.0,65876.0,0.4068933]
[1727625725326,0.001656,65877.0,65876.0,0.4068933]
[1727625727699,0.001656,65877.0,65876.0,0.326128]
[1727625727910,0.001656,65877.0,65876.0,0.4068933]
[1727625730557,0.02545068,65877.0,65876.0,0.4068933]
[1727625732905,0.001656,65877.0,65876.0,0.4068933]
[1727625737139,0.001656,65877.0,65876.0,0.50830473]
[1727625737641,0.001656,65877.0,65876.0,0.4068933]
[1727625739143,0.001656,65877.0,65876.0,0.4176487]
[1727625739662,0.04541408,65884.0,65877.0,0.023]
[1727625739905,0.1151912,65889.0,65888.0,0.319872]
[1727625739906,0.001656,65889.0,65888.0,0.319872]
[1727625740150,0.001656,65889.0,65888.0,0.4006373]
[1727625740400,0.02544724,65889.0,65888.0,0.4006373]
[1727625741621,0.02644724,65889.0,65888.0,0.4006373]
[1727625742420,0.02644724,65889.0,65888.0,0.4236373]
[1727625742659,0.02744724,65889.0,65888.0,0.55756793]
[1727625742892,0.003656,65889.0,65888.0,0.55756793]
[1727625744065,0.003656,65889.0,65888.0,0.56814782]
[1727625744710,0.04543737,65903.0,65902.0,0.15174]
[1727625744958,0.04543737,65904.0,65903.0,0.15477243]
[1727625745182,0.04543737,65904.0,65903.0,0.23553773]
[1727625745409,0.06815606,65905.0,65904.0,0.151735]
[1727625745660,0.06815606,65906.0,65905.0,0.151733]
[1727625745942,0.06815606,65906.0,65905.0,0.2324983]
[1727625746421,0.06815606,65906.0,65905.0,0.22753269]
[1727625746638,0.11359344,65910.0,65905.0,0.22753269]
[1727625746639,0.06815606,65907.0,65906.0,0.151731]
[1727625746861,0.06815606,65907.0,65906.0,0.144731]
[1727625747549,0.06815606,65908.0,65907.0,0.151728]
[1727625747776,0.06815606,65908.0,65907.0,0.23552762]
[1727625747988,0.09087475,65910.0,65909.0,0.142724]
[1727625747989,0.06815606,65910.0,65909.0,0.142724]
[1727625748213,0.06815606,65911.0,65910.0,0.151722]
[1727625748443,0.06815606,65911.0,65910.0,0.2324873]
[1727625748649,0.000827,65912.0,65911.0,0.151719]
[1727625748650,0.06898306,65912.0,65911.0,0.151719]
[1727625748856,0.17973623,65912.0,65911.0,0.141719]
[1727625749524,0.27061098,65912.0,65911.0,0.136719]
[1727625749765,0.000827,65912.0,65911.0,0.127719]
[1727625750661,0.06886712,65912.0,65911.0,0.127719]
[1727625751138,0.07286712,65912.0,65911.0,0.127719]
[1727625751569,0.07286596,65912.0,65911.0,0.127719]
[1727625752644,0.004827,65912.0,65911.0,0.127719]
[1727625753077,0.000827,65912.0,65911.0,0.127719]
[1727625753318,0.005827,65912.0,65911.0,0.127719]
[1727625753724,0.000827,65912.0,65911.0,0.127719]
[1727625754144,0.04616944,65912.0,65911.0,0.127719]
[1727625755692,0.000827,65912.0,65911.0,0.127719]
[1727625756330,0.000827,65912.0,65911.0,0.127419]
[1727625756570,0.02461331,65912.0,65911.0,0.126719]
[1727625756787,0.000827,65912.0,65911.0,0.126719]
[1727625757218,0.000827,65912.0,65911.0,0.126419]
[1727625757479,0.000827,65912.0,65911.0,0.125719]
[1727625757914,0.000827,65912.0,65911.0,0.125619]
[1727625758136,0.000827,65912.0,65911.0,0.125519]
[1727625758379,0.000827,65912.0,65911.0,0.124919]
[1727625758600,0.000827,65912.0,65911.0,0.2055843]
[1727625758818,0.000827,65912.0,65911.0,0.2054843]
[1727625759049,0.000827,65912.0,65911.0,0.2052843]
[1727625759270,0.000827,65912.0,65911.0,0.2046843]
[1727625759497,0.000827,65912.0,65911.0,0.20761838]
[1727625759687,0.000827,65912.0,65911.0,0.2043843]
[1727625759885,0.02461241,65912.0,65911.0,0.20731839]
[1727625760141,0.02461241,65912.0,65911.0,0.2037843]
[1727625760358,0.02461241,65912.0,65911.0,0.2035843]
[1727625760761,0.02461241,65912.0,65911.0,0.2034843]
[1727625761654,0.02461241,65912.0,65911.0,0.2065184]
[1727625762879,0.000827,65912.0,65911.0,0.2081724]
[1727625764351,0.004827,65912.0,65911.0,0.2081724]
[1727625764863,0.000827,65912.0,65911.0,0.2081724]
[1727625766374,0.001827,65912.0,65911.0,0.2081724]
[1727625769614,0.02561231,65912.0,65911.0,0.2081724]
[1727625770319,0.001827,65912.0,65911.0,0.2081724]
[1727625775562,0.04716399,65912.0,65911.0,0.2081724]
[1727625775777,0.04720053,65912.0,65911.0,0.2081724]
[1727625776214,0.001827,65912.0,65911.0,0.2081724]
[1727625776692,0.04720053,65912.0,65911.0,0.2081724]
[1727625778656,0.001827,65912.0,65911.0,0.2081724]
[1727625779110,0.0472213,65912.0,65911.0,0.2081724]
[1727625779541,0.001827,65912.0,65911.0,0.2081724]
[1727625780170,0.04723088,65912.0,65911.0,0.2081724]
[1727625780615,0.001827,65912.0,65911.0,0.2081724]
[1727625780829,0.001827,65912.0,65911.0,0.3069724]
[1727625782427,0.000827,65912.0,65911.0,0.3089724]
[1727625782641,0.000827,65912.0,65911.0,0.3069724]
[1727625782895,0.000827,65912.0,65911.0,0.3139724]
[1727625783338,0.000827,65912.0,65911.0,0.3129724]
[1727625783787,0.000827,65912.0,65911.0,0.3179724]
[1727625784023,0.000827,65912.0,65911.0,0.3149383]
[1727625785319,0.000827,65912.0,65911.0,0.44517733]
[1727625785584,0.04628058,65912.0,65911.0,0.44517733]
[1727625785815,0.04628058,65912.0,65911.0,0.3932383]
[1727625785816,0.000827,65912.0,65911.0,0.3932383]
[1727625786488,0.000827,65912.0,65911.0,0.3882383]
[1727625786717,0.000827,65912.0,65911.0,0.3932383]
[1727625787360,0.000827,65912.0,65911.0,0.3882383]
[1727625787777,0.000827,65912.0,65911.0,0.3822383]
[1727625788019,0.000827,65912.0,65911.0,0.3902383]
[1727625788243,0.000827,65912.0,65911.0,0.2131383]
[1727625788660,0.000827,65912.0,65911.0,0.2201383]
[1727625789119,0.0108186,65912.0,65911.0,0.2201383]
[1727625789409,0.05629936,65912.0,65911.0,0.2201383]
[1727625789909,0.0108186,65912.0,65911.0,0.2201383]
[1727625790138,0.05630401,65912.0,65911.0,0.2201383]
[1727625790376,0.07903975,65912.0,65911.0,0.2201383]
[1727625790877,0.05630886,65912.0,65911.0,0.2201383]
[1727625791371,0.0108186,65912.0,65911.0,0.2201383]
[1727625791605,0.05630886,65912.0,65911.0,0.2201383]
[1727625793317,0.05630886,65912.0,65911.0,0.44285117]
[1727625793318,0.0108186,65912.0,65911.0,0.44285117]
[1727625793537,0.0108186,65912.0,65911.0,0.43981733]
[1727625793768,0.000827,65912.0,65911.0,0.43981733]
[1727625795109,0.000827,65912.0,65911.0,0.3189383]
[1727625798556,0.000827,65912.0,65911.0,0.2201383]
[1727625800390,0.00517,65916.0,65915.0,0.15171]
[1727625800598,0.00517,65916.0,65915.0,0.15474319]
[1727625801469,0.00517,65916.0,65915.0,0.15171]
[1727625801677,0.00517,65916.0,65915.0,0.29179163]
[1727625801899,0.00517,65916.0,65915.0,0.28479163]
[1727625802374,0.00517,65916.0,65915.0,0.30579163]
[1727625803198,0.00517,65916.0,65915.0,0.17271]
[1727625803449,0.00517,65916.0,65915.0,0.2534753]
[1727625805235,0.00517,65916.0,65915.0,0.17271]